bitfinex/quotes_BTCUSD_20241211
["timestamp","ask_amount","ask_price","bid_price","bid_amount"]
[1733883314350,0.41648,96043.0,96040.0,8.565e-05]
[1733883314894,0.52180524,96043.0,96040.0,8.565e-05]
[1733883315107,0.208244,96041.0,96040.0,8.565e-05]
[1733883315307,0.31356924,96041.0,96040.0,8.565e-05]
[1733883315508,0.31356924,96041.0,96040.0,0.00108565]
[1733883315883,0.31356924,96041.0,96040.0,8.565e-05]
[1733883316272,0.31756924,96041.0,96040.0,8.565e-05]
[1733883317083,0.004,96041.0,96040.0,8.565e-05]
[1733883317284,0.004,96041.0,96040.0,0.00308565]
[1733883317737,0.208222,96051.0,96040.0,0.02913001]
[1733883317922,0.004,96041.0,96040.0,0.04913001]
[1733883318212,0.009,96041.0,96040.0,0.15445525]
[1733883318409,0.208192,96066.0,96052.0,0.208219]
[1733883318646,0.208192,96066.0,96053.0,0.0208219]
[1733883319016,0.27959141,96069.0,96059.0,0.208204]
[1733883319214,0.27959141,96069.0,96056.0,0.023]
[1733883319420,0.27959141,96069.0,96058.0,0.023]
[1733883319623,0.004,96066.0,96059.0,0.208205]
[1733883319882,0.004,96066.0,96060.0,0.0763567]
[1733883320213,0.004,96066.0,96063.0,0.208196]
[1733883320894,0.011,96066.0,96063.0,0.208196]
[1733883321104,0.004,96066.0,96063.0,0.208196]
[1733883321612,0.0001714,96070.0,96061.0,0.09334113]
[1733883321613,0.0001714,96070.0,96061.0,0.023]
[1733883321818,0.0001714,96070.0,96063.0,0.006]
[1733883322844,0.0001714,96070.0,96063.0,0.009]
[1733883323696,0.0001714,96070.0,96063.0,0.006]
[1733883324224,0.2083534,96070.0,96058.0,0.023]
[1733883324450,0.2083534,96070.0,96055.0,0.2212117]
[1733883324451,0.2083534,96070.0,96056.0,0.023]
[1733883324728,0.2083534,96070.0,96061.0,0.002]
[1733883324862,0.0001714,96070.0,96057.0,0.05517653]
[1733883325060,0.208183,96069.0,96063.0,0.001]
[1733883325516,0.0001714,96070.0,96064.0,0.023]
[1733883325941,0.0001714,96070.0,96063.0,0.001]
[1733883326195,0.0001714,96070.0,96057.0,0.001]
[1733883326574,0.0001714,96070.0,96063.0,0.023]
[1733883326777,0.0001714,96070.0,96061.0,0.001]
[1733883326778,0.0001714,96070.0,96068.0,0.023]
[1733883326975,0.0001714,96070.0,96069.0,0.34483135]
[1733883327250,0.0001714,96070.0,96069.0,0.45015659]
[1733883327468,0.0001714,96070.0,96069.0,0.49925659]
[1733883327796,0.0001714,96070.0,96069.0,0.03244835]
[1733883328194,0.0001714,96070.0,96069.0,0.13469343]
[1733883328195,0.00033672,96070.0,96069.0,0.13469343]
[1733883328479,0.00133672,96070.0,96069.0,0.04144835]
[1733883328592,0.00033672,96070.0,96069.0,0.03244835]
[1733883329019,0.00133672,96070.0,96069.0,0.04144835]
[1733883329223,0.00033672,96070.0,96069.0,0.03244835]
[1733883329764,0.00033672,96070.0,96069.0,0.03444835]
[1733883330118,0.00033672,96070.0,96069.0,0.03244835]
[1733883330522,0.00033672,96070.0,96069.0,0.03444835]
[1733883330850,0.00033672,96070.0,96069.0,0.03744835]
[1733883331021,0.00033672,96070.0,96069.0,0.005]
[1733883332172,0.00033672,96070.0,96069.0,0.002]
[1733883332328,0.00033672,96070.0,96069.0,0.208183]
[1733883332531,0.00033672,96070.0,96069.0,0.234183]
[1733883332736,0.00033672,96070.0,96069.0,0.34150824]
[1733883333046,0.00033672,96070.0,96069.0,0.41834385]
[1733883333278,0.00033672,96070.0,96069.0,0.10483561]
[1733883333450,0.00033672,96070.0,96069.0,0.026]
[1733883333680,0.00033672,96070.0,96069.0,0.029]
[1733883333899,0.00033672,96070.0,96069.0,0.003]
[1733883334130,0.00033672,96070.0,96069.0,0.008]
[1733883334333,0.00033672,96070.0,96069.0,0.005]
[1733883334493,0.00033672,96070.0,96057.0,0.09320931]
[1733883334691,0.00033672,96070.0,96050.0,0.2083087]
[1733883334692,0.208191,96066.0,96058.0,0.04402638]
[1733883335093,0.00133672,96070.0,96058.0,0.04402638]
[1733883335094,0.2082,96062.0,96058.0,0.04402638]
[1733883335373,0.208216,96054.0,96050.0,0.09329501]
[1733883335825,0.416432,96054.0,96050.0,0.09329501]
[1733883336025,0.416432,96054.0,96050.0,8.57e-05]
[1733883337698,0.208216,96054.0,96050.0,8.57e-05]
[1733883337848,0.00033672,96070.0,96051.0,0.0093295]
[1733883338084,0.208206,96059.0,96051.0,0.0093295]
[1733883338251,0.001,96054.0,96051.0,0.0093295]
[1733883339059,0.001,96054.0,96052.0,0.23122]
[1733883339261,0.001,96054.0,96053.0,0.1027]
[1733883339507,0.001,96054.0,96053.0,0.15785602]
[1733883339508,0.002,96054.0,96053.0,0.15785602]
[1733883339693,0.001,96054.0,96053.0,0.15785602]
[1733883340039,0.00033672,96070.0,96059.0,0.023]
[1733883340168,0.208183,96069.0,96059.0,0.023]
[1733883340377,0.00033672,96070.0,96056.0,0.023]
[1733883340581,0.208185,96068.0,96057.0,0.04832259]
[1733883340815,0.208185,96068.0,96059.0,0.023]
[1733883341144,0.00033672,96070.0,96058.0,0.023]
[1733883341280,0.208193,96065.0,96058.0,0.023]
[1733883342179,0.208193,96065.0,96059.0,0.001]
[1733883342533,0.208193,96065.0,96060.0,0.02071786]
[1733883343575,0.208183,96069.0,96060.0,0.02071786]
[1733883343779,0.208183,96069.0,96060.0,0.02171786]
[1733883344396,0.416367,96069.0,96060.0,0.02171786]
[1733883345128,0.00033672,96070.0,96059.0,0.003]
[1733883345331,0.18762524,96069.0,96059.0,0.003]
[1733883345534,0.208199,96062.0,96060.0,0.001]
[1733883345943,0.10532524,96061.0,96040.0,8.56e-05]
[1733883346128,0.208222,96051.0,96040.0,8.56e-05]
[1733883346489,0.31354724,96051.0,96040.0,8.56e-05]
[1733883346690,0.36074724,96051.0,96040.0,8.56e-05]
[1733883347308,0.44304724,96051.0,96040.0,8.56e-05]
[1733883347914,0.60346532,96051.0,96040.0,8.56e-05]
[1733883348140,0.75339227,96051.0,96050.0,7e-07]
[1733883349098,0.7856404,96051.0,96050.0,7e-07]
[1733883349295,0.7926404,96051.0,96050.0,7e-07]
[1733883349519,0.7926404,96051.0,96040.0,8.56e-05]
[1733883349520,0.44047095,96041.0,96040.0,8.56e-05]
[1733883349743,0.54579619,96041.0,96040.0,8.56e-05]
[1733883350300,0.39586924,96041.0,96040.0,8.56e-05]
[1733883350711,0.31356924,96041.0,96040.0,8.56e-05]
[1733883352047,0.32256924,96041.0,96040.0,0.0010856]
[1733883352392,0.31356924,96041.0,96040.0,8.56e-05]
[1733883352596,0.31756924,96041.0,96040.0,8.56e-05]
[1733883352793,0.31756924,96041.0,96040.0,0.0010856]
[1733883352794,0.32656924,96041.0,96040.0,0.0010856]
[1733883352998,0.38310825,96041.0,96040.0,8.56e-05]
[1733883353207,0.31356924,96041.0,96040.0,8.56e-05]
[1733883353409,0.31356924,96041.0,96040.0,0.0010856]
[1733883353410,0.32656924,96041.0,96040.0,0.0010856]
[1733883354643,0.32256924,96041.0,96040.0,0.0010856]
[1733883354802,0.31356924,96041.0,96040.0,8.56e-05]
[1733883355002,0.37081555,96041.0,96040.0,8.56e-05]
[1733883355229,0.37881555,96041.0,96040.0,0.0010856]
[1733883355430,0.31356924,96041.0,96040.0,8.56e-05]
[1733883355835,0.32356924,96041.0,96040.0,0.0010856]
[1733883356285,0.31356924,96041.0,96040.0,8.56e-05]
[1733883356424,0.32156924,96041.0,96040.0,0.0010856]
[1733883356627,0.32556924,96041.0,96040.0,0.0010856]
[1733883359706,0.33099481,96041.0,96040.0,0.0010856]
[1733883362021,0.22566957,96041.0,96040.0,0.0010856]
[1733883362791,0.21366957,96041.0,96040.0,8.56e-05]
[1733883363085,0.21366957,96041.0,96030.0,8.56e-05]
[1733883363086,0.208266,96031.0,96030.0,8.56e-05]
[1733883363279,0.31359124,96031.0,96030.0,8.56e-05]
[1733883365383,0.31659124,96031.0,96030.0,8.56e-05]
[1733883366234,0.31759124,96031.0,96030.0,8.56e-05]
[1733883366894,0.31359124,96031.0,96030.0,8.56e-05]
[1733883367042,0.31859124,96031.0,96030.0,8.56e-05]
[1733883367243,0.32759124,96031.0,96030.0,0.0010856]
[1733883367431,0.33787772,96031.0,96030.0,0.0010856]
[1733883367633,0.32759124,96031.0,96030.0,0.0010856]
[1733883368478,0.32759124,96031.0,96030.0,8.56e-05]
[1733883368479,0.31359124,96031.0,96030.0,8.56e-05]
[1733883368849,0.32259124,96031.0,96030.0,8.56e-05]
[1733883369090,0.32659124,96031.0,96030.0,8.56e-05]
[1733883369292,0.37211617,96031.0,96030.0,8.56e-05]
[1733883369502,0.32559124,96031.0,96030.0,8.56e-05]
[1733883369731,0.32159124,96031.0,96030.0,8.56e-05]
[1733883370040,0.31759124,96031.0,96030.0,8.56e-05]
[1733883370242,0.32359124,96031.0,96030.0,8.56e-05]
[1733883371198,0.31759124,96031.0,96030.0,8.56e-05]
[1733883372016,0.31359124,96031.0,96030.0,8.56e-05]
[1733883372223,0.31759124,96031.0,96030.0,8.56e-05]
[1733883373010,0.32676124,96031.0,96030.0,0.0010856]
[1733883373263,0.33176124,96031.0,96030.0,0.0010856]
[1733883374694,0.32676124,96031.0,96030.0,0.0010856]
[1733883374893,0.32676124,96031.0,96030.0,6e-07]
[1733883374894,0.39630317,96031.0,96030.0,6e-07]
[1733883375094,0.55030317,96031.0,96030.0,6e-07]
[1733883375755,0.59830317,96031.0,96030.0,6e-07]
[1733883375957,0.59830317,96031.0,96020.0,2e-07]
[1733883375958,0.208287,96021.0,96020.0,2e-07]
[1733883376267,0.208287,96021.0,96010.0,8.56e-05]
[1733883376268,0.208309,96011.0,96010.0,8e-07]
[1733883376381,0.37029564,96011.0,96010.0,3.7e-07]
[1733883376795,0.41829564,96011.0,96010.0,3.7e-07]
[1733883377250,0.56829564,96011.0,96010.0,3.7e-07]
[1733883377825,0.57529564,96011.0,96010.0,0.00100037]
[1733883378374,0.57529564,96011.0,96010.0,3.7e-07]
[1733883378576,0.57529564,96011.0,96010.0,7e-08]
[1733883378577,0.68502402,96011.0,96010.0,7e-08]
[1733883378785,0.83495097,96011.0,96010.0,7e-08]
[1733883379187,0.84517467,96011.0,96010.0,7e-08]
[1733883379392,0.84817467,96011.0,96010.0,7e-08]
[1733883379596,0.84117467,96011.0,96010.0,7e-08]
[1733883379799,0.63458632,96011.0,96010.0,7e-08]
[1733883380010,0.78751327,96011.0,96010.0,7e-08]
[1733883380217,0.79294053,96011.0,96010.0,7e-08]
[1733883380441,0.49401358,96011.0,96010.0,7e-08]
[1733883380596,0.60115801,96011.0,96010.0,7e-08]
[1733883381028,0.44601358,96011.0,96010.0,7e-08]
[1733883381226,0.37751358,96011.0,96010.0,7e-08]
[1733883381433,0.3350615,96011.0,96010.0,7e-08]
[1733883381613,0.3280615,96011.0,96010.0,7e-08]
[1733883382054,0.3330615,96011.0,96010.0,0.00100007]
[1733883382525,0.3280615,96011.0,96010.0,7e-08]
[1733883382744,0.3190615,96011.0,96010.0,7e-08]
[1733883382918,0.3310615,96011.0,96010.0,7e-08]
[1733883383330,0.3190615,96011.0,96010.0,7e-08]
[1733883383535,0.3220615,96011.0,96010.0,7e-08]
[1733883383733,0.3280615,96011.0,96010.0,7e-08]
[1733883383934,0.3220615,96011.0,96010.0,7e-08]
[1733883384311,0.3230615,96011.0,96010.0,7e-08]
[1733883384930,0.3200615,96011.0,96010.0,7e-08]
[1733883385253,0.3210615,96011.0,96010.0,7e-08]
[1733883385451,0.3210615,96011.0,96010.0,0.08110007]
[1733883385452,0.00742726,96011.0,96010.0,0.08110007]
[1733883385677,0.002,96011.0,96010.0,0.09065826]
[1733883385818,0.0001714,96050.0,96023.0,0.208282]
[1733883386017,0.20826,96034.0,96023.0,0.208282]
[1733883386272,0.00541806,96034.0,96025.0,0.208279]
[1733883386621,0.00541806,96034.0,96024.0,0.0811]
[1733883386622,0.208261,96033.0,96026.0,0.0497661]
[1733883386850,0.208261,96033.0,96024.0,0.0811]
[1733883386851,0.00541806,96034.0,96025.0,0.023]
[1733883386993,0.208251,96038.0,96025.0,0.023]
[1733883387267,0.00541769,96035.0,96025.0,0.023]
[1733883387880,0.00541769,96035.0,96026.0,0.416552]
[1733883388214,0.0001714,96050.0,96028.0,0.023]
[1733883388473,0.0001714,96050.0,96043.0,0.0811]
[1733883388679,0.0001714,96050.0,96044.0,0.208237]
[1733883388876,0.0001714,96050.0,96047.0,0.023]
[1733883389078,0.0001714,96050.0,96049.0,0.023]
[1733883389280,0.0001714,96050.0,96049.0,0.0559833]
[1733883389664,0.00033669,96050.0,96049.0,0.0559833]
[1733883390369,0.00033669,96050.0,96049.0,0.023]
[1733883390577,0.00133669,96050.0,96049.0,0.023]
[1733883391073,0.00033669,96050.0,96049.0,0.023]
[1733883391481,0.00033669,96050.0,96049.0,0.12832524]
[1733883391883,0.00033669,96050.0,96049.0,0.22144351]
[1733883392101,0.00133669,96050.0,96049.0,0.3315468]
[1733883392517,0.00133669,96050.0,96049.0,0.23342853]
[1733883392518,0.00033669,96050.0,96049.0,0.23342853]
[1733883392727,0.0001714,96060.0,96049.0,0.23342853]
[1733883392728,0.0001714,96060.0,96059.0,0.208205]
[1733883392931,0.0001714,96060.0,96059.0,0.41213024]
[1733883394179,0.0011714,96060.0,96059.0,0.41213024]
[1733883394384,0.0011714,96060.0,96059.0,0.50416486]
[1733883394651,0.0001714,96060.0,96059.0,0.50416486]
[1733883394829,0.0011714,96060.0,96059.0,0.50416486]
[1733883395406,0.0011714,96060.0,96059.0,0.70226486]
[1733883395810,0.0011714,96060.0,96059.0,0.70626486]
[1733883396253,0.0001714,96060.0,96059.0,0.85626486]
[1733883396602,0.0001714,96060.0,96059.0,0.85226486]
[1733883396603,0.0011714,96060.0,96059.0,0.85226486]
[1733883396965,0.0011714,96060.0,96059.0,0.86860259]
[1733883397167,0.0001714,96070.0,96069.0,0.381183]
[1733883397370,0.0001714,96070.0,96069.0,0.56210824]
[1733883399478,0.0011714,96070.0,96069.0,0.56810824]
[1733883399702,0.0021714,96070.0,96069.0,0.56810824]
[1733883399898,0.0021714,96070.0,96069.0,0.41810824]
[1733883399899,0.0011714,96070.0,96069.0,0.41810824]
[1733883400101,0.0021714,96070.0,96069.0,0.51655716]
[1733883400412,0.0001714,96070.0,96069.0,0.51055716]
[1733883400612,0.0001714,96070.0,96069.0,0.52099713]
[1733883400840,0.0011714,96070.0,96069.0,0.52099713]
[1733883401100,0.0001714,96080.0,96078.0,0.208163]
[1733883401418,0.0001714,96080.0,96079.0,0.023]
[1733883402391,0.00033685,96080.0,96079.0,0.023]
[1733883402627,0.00033685,96080.0,96079.0,0.027]
[1733883402973,0.00033685,96080.0,96079.0,0.13232524]
[1733883403216,0.00133685,96080.0,96079.0,0.30902853]
[1733883403463,0.0001712,96110.0,96081.0,0.15]
[1733883403626,0.0001712,96110.0,96099.0,0.208118]
[1733883403627,0.00072258,96100.0,96099.0,0.208118]
[1733883404238,0.00072258,96100.0,96099.0,0.306818]
[1733883404441,0.00072258,96100.0,96091.0,0.023]
[1733883404639,0.00072258,96100.0,96093.0,0.023]
[1733883405019,0.00072258,96100.0,96094.0,0.208129]
[1733883405367,0.00072258,96100.0,96097.0,0.023]
[1733883405681,0.00072258,96100.0,96095.0,0.023]
[1733883406231,0.00072258,96100.0,96099.0,0.005]
[1733883406232,0.00172258,96100.0,96099.0,0.005]
[1733883406428,0.00072258,96100.0,96099.0,0.04911816]
[1733883406627,0.00072258,96100.0,96099.0,0.07211816]
[1733883406857,0.00172258,96100.0,96099.0,0.07211816]
[1733883407246,0.00172258,96100.0,96099.0,0.1774434]
[1733883407671,0.00072258,96100.0,96099.0,0.4031434]
[1733883408097,0.00072258,96100.0,96099.0,0.4071434]
[1733883409109,0.00072258,96100.0,96099.0,0.4567434]
[1733883409299,0.00072258,96100.0,96099.0,0.4587434]
[1733883409503,0.00072258,96100.0,96099.0,0.3047434]
[1733883409675,0.00072258,96100.0,96099.0,0.3137434]
[1733883409676,0.00172258,96100.0,96099.0,0.3137434]
[1733883410418,0.00172258,96100.0,96099.0,0.3117434]
[1733883410767,0.00172258,96100.0,96099.0,0.3097434]
[1733883410987,0.00272258,96100.0,96099.0,0.6187434]
[1733883412126,0.00172258,96100.0,96099.0,0.6117434]
[1733883412346,0.0001712,96110.0,96109.0,0.606797]
[1733883412539,0.00033651,96110.0,96109.0,0.90210421]
[1733883412954,0.00033651,96110.0,96109.0,0.95170421]
[1733883413552,0.00559892,96140.0,96137.0,0.023]
[1733883413754,0.0057642,96140.0,96137.0,0.023]
[1733883414359,0.0057642,96140.0,96134.0,0.208042]
[1733883414564,0.0057642,96140.0,96136.0,0.023]
[1733883414773,0.208032,96139.0,96118.0,0.208076]
[1733883414975,0.0057642,96140.0,96109.0,0.17428197]
[1733883415153,0.18032524,96139.0,96109.0,0.09526327]
[1733883415360,0.18032524,96139.0,96109.0,0.08626327]
[1733883415361,0.208064,96124.0,96109.0,0.08626327]
[1733883415583,0.208064,96124.0,96110.0,0.208094]
[1733883415985,0.208034,96138.0,96111.0,0.10532524]
[1733883416186,0.0057642,96140.0,96113.0,0.15]
[1733883416516,0.001,96139.0,96115.0,0.023]
[1733883416718,0.001,96139.0,96118.0,0.023]
[1733883416910,0.001,96139.0,96129.0,0.023]
[1733883417042,0.0057642,96140.0,96130.0,0.208051]
[1733883417246,0.0057642,96140.0,96132.0,0.023]
[1733883417467,0.0057642,96140.0,96132.0,0.231047]
[1733883417673,0.0057642,96140.0,96131.0,0.0439103]
[1733883417878,0.0057642,96140.0,96110.0,0.15]
[1733883417879,0.0057642,96140.0,96132.0,0.023]
[1733883418229,0.208044,96134.0,96126.0,0.023]
[1733883418435,0.208044,96134.0,96121.0,0.023]
[1733883418627,0.208044,96134.0,96123.0,0.023]
[1733883419033,0.0057642,96140.0,96123.0,0.023]
[1733883419034,0.208062,96125.0,96123.0,0.023]
[1733883419187,0.0812,96136.0,96119.0,0.023]
[1733883419593,0.0812,96136.0,96112.0,0.04915885]
[1733883419594,0.208057,96128.0,96113.0,0.231088]
[1733883419852,0.208057,96128.0,96123.0,0.001]
[1733883420328,0.416114,96128.0,96124.0,0.023]
[1733883420683,0.208076,96119.0,96115.0,0.023]
[1733883420883,0.0812,96136.0,96114.0,0.023]
[1733883421227,0.208047,96132.0,96116.0,0.023]
[1733883421437,0.208058,96127.0,96114.0,0.023]
[1733883421724,0.208058,96127.0,96116.0,0.023]
[1733883422151,0.31335724,96139.0,96116.0,0.023]
[1733883422152,0.31335724,96139.0,96122.0,0.208068]
[1733883422367,0.0057642,96140.0,96125.0,0.023]
[1733883422573,0.0057642,96140.0,96135.0,0.023]
[1733883422741,0.0057642,96140.0,96137.0,0.208036]
[1733883422943,0.0057642,96140.0,96137.0,0.023]
[1733883423933,0.0057642,96140.0,96137.0,0.027]
[1733883424128,0.0057642,96140.0,96137.0,0.023]
[1733883424330,0.208046,96133.0,96113.0,0.15]
[1733883424557,0.208058,96127.0,96119.0,0.023]
[1733883424771,0.208058,96127.0,96118.0,0.04243605]
[1733883424964,0.20805,96131.0,96117.0,0.0103509]
[1733883425253,0.0057642,96140.0,96111.0,0.0794]
[1733883425254,0.20806,96126.0,96111.0,0.0794]
[1733883425654,0.20806,96126.0,96114.0,0.01041136]
[1733883426122,0.20806,96126.0,96111.0,0.0794]
[1733883426354,0.002,96131.0,96101.0,0.208113]
[1733883426731,0.208064,96124.0,96109.0,0.208095]
[1733883427008,0.208059,96127.0,96109.0,0.208095]
[1733883427208,0.0057642,96140.0,96110.0,0.12613474]
[1733883427451,0.208055,96129.0,96110.0,0.12613474]
[1733883427634,0.0057642,96140.0,96110.0,0.12613474]
[1733883427635,0.208076,96119.0,96111.0,0.023]
[1733883427843,0.208076,96119.0,96111.0,0.03561347]
[1733883428252,0.208086,96114.0,96111.0,0.01261347]
[1733883428582,0.0807,96120.0,96089.0,0.0794]
[1733883428712,0.0807,96120.0,96089.0,0.495677]
[1733883428713,0.208103,96107.0,96089.0,0.495677]
[1733883428914,0.208103,96107.0,96091.0,0.208136]
[1733883429142,0.208113,96102.0,96090.0,0.0495677]
[1733883429374,0.10532524,96119.0,96090.0,0.0495677]
[1733883429375,0.208133,96093.0,96090.0,0.0495677]
[1733883429591,0.10532524,96119.0,96082.0,0.208155]
[1733883429592,0.208125,96096.0,96082.0,0.208155]
[1733883429776,0.208125,96096.0,96081.0,0.10532524]
[1733883429777,0.208077,96118.0,96083.0,0.208152]
[1733883430045,0.0807,96120.0,96084.0,0.10532524]
[1733883430238,0.001,96107.0,96091.0,0.008]
[1733883430512,0.208087,96114.0,96097.0,0.208121]
[1733883430513,0.208097,96109.0,96097.0,0.208121]
[1733883430716,0.208075,96119.0,96102.0,0.023]
[1733883430870,0.203075,96119.0,96104.0,0.023]
[1733883431074,0.26832486,96130.0,96104.0,0.023]
[1733883431305,0.208088,96113.0,96104.0,0.023]
[1733883431716,0.18762486,96130.0,96116.0,0.023]
[1733883431717,0.0001712,96130.0,96116.0,0.023]
[1733883431914,0.0001712,96130.0,96126.0,0.023]
[1733883432073,0.0001712,96130.0,96128.0,0.023]
[1733883432278,0.0001712,96130.0,96129.0,0.1024]
[1733883432519,0.0001712,96130.0,96129.0,0.310453]
[1733883433505,0.0031712,96130.0,96129.0,0.310453]
[1733883434154,0.0011712,96130.0,96129.0,0.310453]
[1733883434324,0.0011712,96130.0,96129.0,0.4059972]
[1733883435175,0.0011712,96130.0,96129.0,0.1979442]
[1733883435984,0.0011712,96130.0,96129.0,0.2019442]
[1733883437604,0.2081814,96150.0,96129.0,0.30726944]
[1733883437605,0.0001714,96150.0,96129.0,0.30726944]
[1733883437815,0.0001714,96150.0,96139.0,0.231032]
[1733883437816,0.0057642,96140.0,96139.0,0.231032]
[1733883437987,0.0057642,96140.0,96139.0,0.2794588]
[1733883438188,0.00033668,96140.0,96139.0,0.38478404]
[1733883438412,0.0001714,96150.0,96139.0,0.46268404]
[1733883438630,0.0001714,96160.0,96139.0,0.46268404]
[1733883438631,0.0001714,96160.0,96152.0,0.15]
[1733883438915,0.0001714,96160.0,96159.0,0.230988]
[1733883439119,0.0001714,96160.0,96159.0,0.33631324]
[1733883440143,0.0011714,96160.0,96159.0,0.34531324]
[1733883440275,0.0011714,96160.0,96159.0,0.35031324]
[1733883440461,0.0001714,96160.0,96159.0,0.36441924]
[1733883440667,0.0011714,96160.0,96159.0,0.36841924]
[1733883440865,0.0011714,96160.0,96159.0,0.41361924]
[1733883441077,0.0011714,96160.0,96159.0,0.57889008]
[1733883441321,0.0011714,96160.0,96159.0,0.41361924]
[1733883441720,0.0011714,96160.0,96159.0,0.43947972]
[1733883442021,0.0011714,96160.0,96159.0,0.41761924]
[1733883442218,0.0001714,96160.0,96159.0,0.40861924]
[1733883442420,0.0001714,96160.0,96159.0,0.42779903]
[1733883442621,0.0001714,96160.0,96159.0,0.66666505]
[1733883442885,0.0001714,96160.0,96159.0,0.65766505]
[1733883443191,0.0001714,96160.0,96159.0,0.57779903]
[1733883443421,0.0001714,96180.0,96169.0,0.357967]
[1733883443627,0.0001714,96180.0,96177.0,0.023]
[1733883443827,0.0001714,96180.0,96179.0,0.380945]
[1733883444038,0.0001714,96180.0,96179.0,0.63627024]
[1733883444725,0.00033668,96180.0,96179.0,0.63627024]
[1733883444999,0.00033668,96180.0,96179.0,0.69964744]
[1733883445185,0.00033668,96180.0,96179.0,0.39964744]
[1733883445378,0.00033668,96180.0,96179.0,0.0633772]
[1733883445583,0.00033668,96180.0,96169.0,0.17035435]
[1733883445734,0.00033668,96180.0,96171.0,0.207961]
[1733883445938,0.00033668,96180.0,96172.0,0.10532524]
[1733883446209,0.00033668,96180.0,96178.0,0.207945]
[1733883446367,0.00033668,96180.0,96179.0,0.006]
[1733883446573,0.00033668,96180.0,96179.0,0.013]
[1733883446775,0.00033668,96180.0,96179.0,0.04562832]
[1733883447120,0.00033668,96180.0,96179.0,0.05562832]
[1733883447813,0.00033668,96180.0,96179.0,0.05762832]
[1733883448435,0.00033668,96180.0,96179.0,0.002]
[1733883449196,0.00033668,96180.0,96159.0,0.068306]
[1733883449197,0.207975,96166.0,96159.0,0.068306]
[1733883449386,0.00033668,96180.0,96179.0,0.001]
[1733883449518,0.20827968,96180.0,96179.0,0.004]
[1733883449702,0.20827968,96180.0,96152.0,0.208002]
[1733883449703,0.20827968,96180.0,96161.0,0.207983]
[1733883449904,0.20827968,96180.0,96152.0,0.208002]
[1733883449905,0.207958,96173.0,96152.0,0.208002]
[1733883450203,0.207978,96164.0,96153.0,0.13427544]
[1733883450649,0.00033668,96180.0,96153.0,0.13427544]
[1733883450650,0.20798,96163.0,96153.0,0.0289502]
[1733883450983,0.20798,96163.0,96148.0,0.21849765]
[1733883450984,0.20799,96159.0,96154.0,0.03527731]
[1733883451151,0.18745366,96170.0,96138.0,0.208034]
[1733883451321,0.18745366,96170.0,96139.0,0.10532524]
[1733883451723,0.18745366,96160.0,96124.0,0.0815]
[1733883451933,0.10532524,96169.0,96124.0,0.0815]
[1733883451934,0.208023,96144.0,96129.0,0.208051]
[1733883452133,0.10532524,96169.0,96131.0,0.208049]
[1733883452134,0.208017,96146.0,96131.0,0.208049]
[1733883452338,0.208017,96146.0,96132.0,0.10532524]
[1733883452548,0.208017,96146.0,96130.0,0.06029362]
[1733883452549,0.207969,96168.0,96130.0,0.06029362]
[1733883452749,0.0803,96171.0,96124.0,0.09215283]
[1733883452750,0.208038,96137.0,96124.0,0.01065283]
[1733883452932,0.18745366,96150.0,96126.0,0.20806]
[1733883453131,0.047,96156.0,96129.0,0.001]
[1733883453380,0.208038,96137.0,96129.0,0.001]
[1733883453603,0.208038,96137.0,96130.0,0.01064905]
[1733883454180,0.208038,96136.0,96130.0,0.01064905]
[1733883454382,0.208052,96130.0,96126.0,0.00016528]
[1733883454585,0.416104,96130.0,96129.0,0.003]
[1733883454979,0.207999,96154.0,96129.0,0.003]
[1733883454980,0.0803,96178.0,96130.0,0.0815]
[1733883455356,0.0001712,96200.0,96143.0,0.208023]
[1733883455357,0.13909362,96189.0,96143.0,0.208023]
[1733883455484,0.13909362,96189.0,96142.0,0.15]
[1733883455485,0.13909362,96189.0,96144.0,0.10532524]
[1733883455686,0.207945,96179.0,96150.0,0.18745366]
[1733883455889,0.207933,96185.0,96164.0,0.415952]
[1733883456092,0.0001714,96190.0,96165.0,0.0415952]
[1733883456296,0.0001714,96190.0,96152.0,0.023]
[1733883456297,0.207938,96183.0,96152.0,0.023]
[1733883456507,0.207938,96183.0,96166.0,0.207973]
[1733883456723,0.0001714,96190.0,96167.0,0.023]
[1733883456921,0.10549664,96180.0,96167.0,0.023]
[1733883457294,0.207958,96174.0,96167.0,0.023]
[1733883457498,0.207945,96179.0,96167.0,0.023]
[1733883457703,0.207945,96179.0,96169.0,0.023]
[1733883457905,0.00033668,96180.0,96169.0,0.230967]
[1733883459530,0.20828168,96180.0,96169.0,0.230967]
[1733883459934,0.00033668,96180.0,96167.0,0.023]
[1733883460154,0.00033668,96180.0,96160.0,0.207985]
[1733883460155,0.00033668,96180.0,96161.0,0.023]
[1733883460349,0.00033668,96180.0,96161.0,0.064598]
[1733883461010,0.207964,96171.0,96161.0,0.064598]
[1733883462061,0.00033668,96180.0,96161.0,0.064598]
[1733883462266,0.207956,96175.0,96161.0,0.064598]
[1733883462638,0.207956,96175.0,96163.0,0.023]
[1733883462988,0.207964,96171.0,96163.0,0.023]
[1733883463365,0.207964,96171.0,96161.0,0.003]
[1733883463582,0.415928,96171.0,96162.0,0.023]
[1733883463755,0.415928,96171.0,96157.0,0.023]
[1733883464021,0.207973,96167.0,96164.0,0.023]
[1733883464221,0.207964,96171.0,96164.0,0.023]
[1733883464466,0.00033668,96180.0,96159.0,0.023]
[1733883464638,0.00033668,96180.0,96174.0,0.023]
[1733883465041,0.00033668,96180.0,96170.0,0.023]
[1733883465243,0.00033668,96180.0,96172.0,0.023]
[1733883466093,0.00033668,96180.0,96174.0,0.023]
[1733883466510,0.00033668,96180.0,96178.0,0.023]
[1733883466882,0.00033668,96180.0,96179.0,0.230945]
[1733883467045,0.00033668,96180.0,96179.0,0.30949048]
[1733883468344,0.00033668,96180.0,96179.0,0.31449048]
[1733883468876,0.00033668,96180.0,96179.0,0.31749048]
[1733883469309,0.00033668,96180.0,96179.0,0.31449048]
[1733883469708,0.00033668,96180.0,96179.0,0.31649048]
[1733883469911,0.00033668,96180.0,96179.0,0.10854548]
[1733883470116,0.00033668,96180.0,96179.0,0.03]
[1733883470356,0.00033668,96180.0,96179.0,0.025]
[1733883470560,0.00033668,96180.0,96179.0,0.03]
[1733883470918,0.00033668,96180.0,96179.0,0.025]
[1733883471121,0.00033668,96180.0,96179.0,0.03]
[1733883471935,0.207957,96174.0,96160.0,0.207984]